fUSD/lending_fUSD_20260314
["ID","MTS","AMOUNT","RATE_DAILY","PERIOD"]
[408359572,1773491464096,-1554.43,0.00047712,30]
[408359573,1773491464106,-1554.43,0.00047712,30]
[408359574,1773491464116,-1554.43,0.00047712,30]
[408359575,1773491464128,-463.87,0.00047712,30]
[408359576,1773491464137,-157.29886018,0.00047718,2]
[408359577,1773491464146,-500.0,0.00047722,2]
[408359578,1773491464155,-309.34158336,0.00047726,4]
[408359579,1773491464164,-1518.0,0.00047727,14]
[408359580,1773491464174,-151.0,0.00047727,14]
[408359581,1773491464183,-1518.0,0.00047727,14]
[408359582,1773491464192,-151.0,0.00047727,14]
[408359583,1773491464201,-1518.0,0.00047727,14]
[408359584,1773491464211,-160.0,0.00047727,14]
[408359585,1773491464220,-1518.0,0.00047727,14]
[408359586,1773491464229,-160.0,0.00047727,14]
[408359587,1773491464238,-1518.0,0.00047727,14]
[408359588,1773491464247,-160.74744614,0.00047727,14]
[408359589,1773491464256,-152.0,0.00047727,14]
[408359590,1773491464266,-150.0,0.00047731,30]
[408359591,1773491464275,-150.0,0.00047738,15]
[408359592,1773491464285,-150.0,0.00047739,30]
[408359593,1773491464295,-322.1011925,0.00047749,30]
[408359594,1773491464304,-169.38985709,0.00047749,30]
[408359595,1773491464314,-150.0,0.00047756,30]
[408359596,1773491464324,-150.0,0.00047757,30]
[408359597,1773491464334,-150.0,0.00047777,30]
[408359598,1773491464348,-150.0,0.00047777,30]
[408359599,1773491464357,-150.0,0.0004779,30]
[408359600,1773491464367,-150.0,0.00047794,30]
[408359601,1773491464376,-322.1011925,0.00047799,30]
[408359602,1773491464387,-169.38985709,0.00047799,30]
[408359603,1773491464396,-150.0,0.00047806,30]
[408359604,1773491464406,-625.86539035,0.00047822,2]
[408359605,1773491464418,-150.0,0.00047826,30]
[408359606,1773491464427,-150.0,0.00047849,30]
[408359607,1773491464436,-150.0,0.00047849,30]
[408359608,1773491464447,-150.0,0.00047849,30]
[408359609,1773491464458,-322.1011925,0.00047849,30]
[408359610,1773491464467,-150.0,0.00047849,30]
[408359611,1773491464477,-169.38985709,0.00047849,30]
[408359612,1773491464486,-150.0,0.00047849,30]
[408359613,1773491464496,-150.0,0.00047849,30]
[408359614,1773491464505,-150.0,0.00047849,30]
[408359615,1773491464515,-150.0,0.00047896,30]
[408359616,1773491464524,-322.1011925,0.00047899,30]
[408359617,1773491464534,-169.38985709,0.00047899,30]
[408359618,1773491464543,-150.0,0.00047904,30]
[408359619,1773491464552,-150.0,0.00047908,30]
[408359620,1773491464561,-150.0,0.00047936,30]
[408359621,1773491464570,-150.0,0.00047941,30]
[408359622,1773491464578,-200.0,0.00047945,7]
[408359623,1773491464588,-322.1011925,0.00047949,30]
[408359624,1773491464597,-169.38985709,0.00047949,30]
[408359625,1773491464606,-150.0,0.00047959,30]
[408359626,1773491464615,-150.0,0.00047965,30]
[408359627,1773491464624,-150.0,0.00047967,30]
[408359628,1773491464633,-200.0,0.00047986,7]
[408359629,1773491464642,-150.0,0.00047987,30]
[408359630,1773491464651,-150.0,0.00047993,30]
[408359631,1773491464661,-150.0,0.00047993,30]
[408359632,1773491464670,-150.0,0.00047999,30]
[408359633,1773491464679,-322.1011925,0.00047999,30]
[408359634,1773491464688,-169.38985709,0.00047999,30]
[408359635,1773491464697,-300.0,0.00048,10]
[408359636,1773491464706,-2559.2861,0.00048,2]
[408359637,1773491464716,-151.0,0.00048,60]
[408359638,1773491464725,-150.0,0.00048014,30]
[408359639,1773491464735,-150.0,0.00048026,30]
[408359640,1773491464744,-150.0,0.00048032,30]
[408359641,1773491464753,-150.0,0.00048035,30]
[408359642,1773491464762,-322.1011925,0.00048049,30]
[408359643,1773491464771,-169.38985709,0.00048049,30]
[408359644,1773491464780,-5579.55,0.00048053,120]
[408359645,1773491464789,-150.0,0.00048066,30]
[408359646,1773491464798,-150.0,0.00048069,30]
[408359647,1773491464807,-150.0,0.00048085,30]
[408359648,1773491464816,-322.1011925,0.00048099,30]
[408359649,1773491464825,-169.38985709,0.00048099,30]
[408359650,1773491464835,-150.0,0.00048105,30]
[408359651,1773491464844,-150.0,0.00048124,30]
[408359652,1773491464853,-150.0,0.00048124,30]
[408359653,1773491464863,-150.0,0.00048124,30]
[408359654,1773491464872,-150.0,0.00048144,30]
[408359655,1773491464881,-150.0,0.00048149,30]
[408359656,1773491464891,-322.1011925,0.00048149,30]
[408359657,1773491464900,-169.38985709,0.00048149,30]
[408359658,1773491464910,-151.5,0.00048169,2]
[408359659,1773491464929,-150.0,0.00048174,30]
[408359660,1773491464939,-150.0,0.00048179,30]
[408359661,1773491464949,-150.0,0.00048196,30]
[408359662,1773491464958,-322.1011925,0.00048199,30]
[408359663,1773491464967,-169.38985709,0.00048199,30]
[408359664,1773491464976,-150.0,0.00048203,30]
[408359665,1773491464986,-150.0,0.00048208,30]
[408359666,1773491464996,-150.0,0.00048208,30]
[408359667,1773491465006,-150.0,0.00048216,30]
[408359668,1773491465016,-500.0,0.00048219,60]
[408359669,1773491465025,-150.0,0.00048234,30]
[408359670,1773491465036,-150.0,0.00048244,30]
[408359671,1773491465045,-322.1011925,0.00048249,30]
[408359672,1773491465055,-169.38985709,0.00048249,30]
[408359673,1773491465065,-150.0,0.00048262,30]
[408359674,1773491465074,-150.0,0.00048262,30]
[408359675,1773491465084,-150.0,0.00048289,30]
[408359676,1773491465094,-150.0,0.00048299,30]
[408359677,1773491465103,-322.1011925,0.00048299,30]
[408359678,1773491465113,-169.38985709,0.00048299,30]
[408359679,1773491465122,-2996.1587,0.000483,2]
[408359680,1773491465133,-150.0,0.00048307,30]
[408359681,1773491465142,-500.0,0.0004831,30]
[408359682,1773491465152,-150.0,0.00048314,30]
[408359683,1773491465162,-295.391,0.00048318,30]
[408359684,1773491465171,-150.0,0.0004832,30]
[408359685,1773491465180,-150.0,0.00048327,30]
[408359686,1773491465190,-151.5,0.00048333,2]
[408359687,1773491465199,-150.0,0.00048344,30]
[408359688,1773491465209,-151.5,0.00048347,2]
[408359689,1773491465218,-150.0,0.00048348,120]
[408359690,1773491465228,-327.6,0.00048348,120]
[408359691,1773491465238,-322.1011925,0.00048349,30]
[408359692,1773491465383,-169.38985709,0.00048349,30]
[408359693,1773491465406,-150.0,0.00048356,120]
[408359694,1773491465418,-150.0,0.00048379,30]
[408359695,1773491465428,-150.0,0.00048384,30]
[408359696,1773491465438,-150.0,0.00048399,30]
[408359697,1773491465448,-150.0,0.00048399,30]
[408359698,1773491465458,-322.1011925,0.00048399,30]
[408359699,1773491465469,-169.38985709,0.00048399,30]
[408359700,1773491465480,-150.0,0.00048399,30]
[408359701,1773491465490,-150.0,0.00048399,30]
[408359702,1773491465500,-5579.55,0.00048417,120]
[408359703,1773491465509,-150.0,0.00048423,30]
[408359704,1773491465519,-150.0,0.00048423,30]
[408359705,1773491465530,-200.0,0.00048424,7]
[408359706,1773491465540,-150.0,0.00048438,30]
[408359707,1773491465550,-150.0,0.00048449,30]
[408359708,1773491465561,-322.1011925,0.00048449,30]
[408359709,1773491465571,-169.38985709,0.00048449,30]
[408359710,1773491465580,-150.0,0.00048453,30]
[408359711,1773491465590,-150.0,0.00048454,30]
[408359712,1773491465600,-150.0,0.00048457,30]
[408359713,1773491465609,-151.5,0.00048459,2]
[408359714,1773491465619,-200.0,0.00048466,7]
[408359715,1773491465628,-151.5,0.00048487,2]
[408359716,1773491465639,-150.0,0.00048491,30]
[408359717,1773491465648,-500.0,0.00048493,120]
[408359718,1773491465658,-207.89318124,0.00048493,7]
[408359719,1773491465667,-150.0,0.00048497,30]
[408359720,1773491465677,-322.1011925,0.00048499,30]
[408359721,1773491465686,-169.38985709,0.00048499,30]
[408359722,1773491465696,-508.0,0.000485,31]
[408359723,1773491465706,-150.0,0.00048509,30]
[408359724,1773491465717,-150.0,0.00048523,30]
[408359725,1773491465727,-150.0,0.00048537,30]
[408359726,1773491465736,-322.1011925,0.00048549,30]
[408359727,1773491465746,-169.38985709,0.00048549,30]
[408359728,1773491465756,-150.0,0.00048556,30]
[408359729,1773491465766,-150.0,0.00048564,30]
[408359730,1773491465775,-150.0,0.00048582,30]
[408359731,1773491465785,-150.0,0.00048587,30]
[408359732,1773491465795,-150.0,0.00048593,30]
[408359733,1773491465806,-151.5,0.00048597,2]
[408359734,1773491465816,-322.1011925,0.00048599,30]
[408359735,1773491465826,-169.38985709,0.00048599,30]
[408359736,1773491465836,-150.0,0.00048599,30]
[408359737,1773491465846,-3507.6059,0.000486,2]
[408359738,1773491465856,-305.53580519,0.00048608,120]
[408359739,1773491465865,-150.0,0.00048615,30]
[408359740,1773491465876,-150.0,0.00048619,30]
[408359741,1773491465886,-150.0,0.00048638,30]
[408359742,1773491465895,-150.0,0.00048638,30]
[408359743,1773491465905,-1000.0,0.00048649,14]
[408359744,1773491465915,-322.1011925,0.00048649,30]
[408359745,1773491465924,-169.38985709,0.00048649,30]
[408359746,1773491465934,-150.0,0.00048662,30]
[408359747,1773491465943,-150.0,0.00048674,30]
[408359748,1773491465952,-150.0,0.00048674,30]
[408359749,1773491465961,-150.0,0.00048674,30]
[408359750,1773491465971,-150.0,0.00048674,30]
[408359751,1773491465981,-150.0,0.00048674,30]
[408359752,1773491465991,-500.0,0.00048689,2]
[408359753,1773491466000,-500.0,0.00048689,2]
[408359754,1773491466009,-500.0,0.00048689,2]
[408359755,1773491466019,-500.0,0.00048689,2]
[408359756,1773491466028,-500.0,0.00048689,2]
[408359757,1773491466037,-500.0,0.00048689,2]
[408359758,1773491466048,-512.0,0.00048689,2]
[408359759,1773491466057,-500.0,0.00048689,2]
[408359760,1773491466066,-500.0,0.00048689,2]
[408359761,1773491466075,-500.0,0.00048689,2]
[408359762,1773491466084,-500.0,0.00048689,2]
[408359763,1773491466093,-524.0,0.00048689,2]
[408359764,1773491466102,-500.0,0.00048689,2]
[408359765,1773491466112,-500.0,0.00048689,2]
[408359766,1773491466121,-500.0,0.00048689,2]
[408359767,1773491466130,-500.0,0.00048689,2]
[408359768,1773491466139,-500.0,0.00048689,2]
[408359769,1773491466149,-500.0,0.00048689,2]
[408359770,1773491466159,-500.0,0.00048689,2]
[408359771,1773491466168,-500.0,0.00048689,2]
[408359772,1773491466177,-500.0,0.00048689,2]
[408359773,1773491466186,-500.0,0.00048689,2]
[408359774,1773491466195,-500.0,0.00048689,2]
[408359775,1773491466204,-500.0,0.00048689,2]
[408359776,1773491466214,-500.0,0.00048689,2]
[408359777,1773491466224,-500.0,0.00048689,2]
[408359778,1773491466233,-500.0,0.00048689,2]
[408359779,1773491466242,-500.0,0.00048689,2]
[408359780,1773491466251,-500.0,0.00048689,2]
[408359781,1773491466260,-500.0,0.00048689,2]
[408359782,1773491466270,-500.0,0.00048689,2]
[408359783,1773491466280,-500.0,0.00048689,2]
[408359784,1773491466290,-500.0,0.00048689,2]
[408359785,1773491466300,-500.0,0.00048689,2]
[408359786,1773491466309,-500.0,0.00048689,2]
[408359787,1773491466318,-500.0,0.00048689,2]
[408359788,1773491466328,-500.0,0.00048689,2]
[408359789,1773491466338,-500.0,0.00048689,2]
[408359790,1773491466351,-500.0,0.00048689,2]
[408359791,1773491466361,-500.0,0.00048689,2]
[408359792,1773491466374,-500.0,0.00048689,2]
[408359793,1773491466392,-500.0,0.00048689,2]
[408359794,1773491466406,-500.0,0.00048689,2]
[408359795,1773491466421,-500.0,0.00048689,2]
[408359796,1773491466436,-500.0,0.00048689,2]
[408359797,1773491466452,-500.0,0.00048689,2]
[408359798,1773491466468,-500.0,0.00048689,2]
[408359799,1773491466482,-500.0,0.00048689,2]
[408359800,1773491466493,-500.0,0.00048689,2]
[408359801,1773491466510,-500.0,0.00048689,2]
[408359802,1773491466525,-500.0,0.00048689,2]
[408359803,1773491466538,-500.0,0.00048689,2]
[408359804,1773491466552,-500.0,0.00048689,2]
[408359805,1773491466568,-500.0,0.00048689,2]
[408359806,1773491466582,-500.0,0.00048689,2]
[408359807,1773491466598,-500.0,0.00048689,2]
[408359808,1773491466614,-500.0,0.00048689,2]
[408359809,1773491466628,-500.0,0.00048689,2]
[408359810,1773491466642,-500.0,0.00048689,2]
[408359811,1773491466660,-500.0,0.00048689,2]
[408359812,1773491466674,-500.0,0.00048689,2]
[408359813,1773491466689,-500.0,0.00048689,2]
[408359814,1773491466700,-500.0,0.00048689,2]
[408359815,1773491466713,-500.0,0.00048689,2]
[408359816,1773491466731,-500.0,0.00048689,2]
[408359817,1773491466743,-500.0,0.00048689,2]
[408359818,1773491466754,-500.0,0.00048689,2]
[408359819,1773491466768,-500.0,0.00048689,2]
[408359820,1773491466781,-500.0,0.00048689,2]
[408359821,1773491466793,-500.0,0.00048689,2]
[408359822,1773491466807,-500.0,0.00048689,2]
[408359823,1773491466818,-500.0,0.00048689,2]
[408359824,1773491466829,-180.06907143,0.00048689,2]
[408359825,1773491466843,-322.1011925,0.00048699,30]
[408359826,1773491466856,-169.38985709,0.00048699,30]
[408359827,1773491466870,-200.0,0.000487,17]
[408359828,1773491466883,-150.0,0.00048717,30]
[408359829,1773491466897,-150.0,0.00048729,30]
[408359830,1773491466911,-150.0,0.00048732,30]
[408359831,1773491466924,-150.0,0.00048733,30]
[408359832,1773491466938,-150.0,0.00048749,30]
[408359833,1773491466950,-322.1011925,0.00048749,30]
[408359834,1773491466963,-169.38985709,0.00048749,30]
[408359835,1773491466976,-150.0,0.00048766,30]
[408359836,1773491466988,-500.0,0.00048767,60]
[408359837,1773491467000,-500.0,0.00048767,60]
[408359838,1773491467013,-500.0,0.00048767,60]
[408359839,1773491467026,-5579.55,0.0004878,120]
[408359840,1773491467038,-150.0,0.00048784,30]
[408359841,1773491467051,-150.0,0.00048792,30]
[408359842,1773491467064,-322.1011925,0.00048799,30]
[408359843,1773491467076,-169.38985709,0.00048799,30]
[408359844,1773491467090,-636.0,0.000488,17]
[408359845,1773491467102,-16740.98663551,0.000488,3]
[408359846,1773491467114,-7471.37019402,0.000488,5]
[408359847,1773491467126,-30000.0,0.000488,2]
[408359848,1773491467139,-8021.00088486,0.000488,5]
[408359849,1773491467151,-150.0,0.00048802,30]
[408359850,1773491467163,-150.0,0.00048812,30]
[408359851,1773491467176,-150.0,0.0004882,120]
[408359852,1773491467188,-150.0,0.00048839,30]
[408359853,1773491467200,-150.0,0.00048848,30]
[408359854,1773491467212,-322.1011925,0.00048849,30]
[408359855,1773491467224,-169.38985709,0.00048849,30]
[408359856,1773491467236,-150.0,0.00048851,30]
[408359857,1773491467249,-150.0,0.00048853,30]
[408359858,1773491467261,-150.0,0.00048853,30]
[408359859,1773491467273,-150.0,0.00048857,30]
[408359860,1773491467286,-150.0,0.00048872,30]
[408359861,1773491467298,-150.0,0.00048894,30]
[408359862,1773491467311,-193.92774639,0.00048899,120]
[408359863,1773491467323,-150.0,0.00048899,30]
[408359864,1773491467338,-322.1011925,0.00048899,30]
[408359865,1773491467350,-169.38985709,0.00048899,30]
[408359866,1773491467364,-274.7651109,0.000489,120]
[408359867,1773491467375,-4106.3576,0.000489,2]
[408359868,1773491467389,-203.88235924,0.000489,120]
[408359869,1773491467401,-203.88235923,0.000489,120]
[408359870,1773491467414,-200.0,0.00048908,7]
[408359871,1773491467426,-150.0,0.0004891,30]
[408359872,1773491467438,-150.0,0.00048941,30]
[408359873,1773491467450,-150.0,0.00048949,30]
[408359874,1773491467463,-150.0,0.00048949,30]
[408359875,1773491467476,-322.1011925,0.00048949,30]
[408359876,1773491467488,-169.38985709,0.00048949,30]
[408359877,1773491467501,-150.0,0.00048949,30]
[408359878,1773491467513,-150.0,0.00048949,30]
[408359879,1773491467525,-150.0,0.00048969,30]
[408359880,1773491467536,-150.0,0.00048978,30]
[408359881,1773491467549,-70510.84941871,0.0004899,5]
[408359882,1773491467562,-322.1011925,0.00048999,30]
[408359883,1773491467576,-169.38985709,0.00048999,30]
[408359884,1773491467589,-8955.18,0.00049,14]
[408359885,1773491467603,-151.0,0.00049,60]
[408359886,1773491467612,-150.0,0.00049004,30]
[408359887,1773491467622,-151.0908214,0.00049005,120]
[408359888,1773491467631,-150.0,0.00049011,30]
[408359889,1773491467641,-484295.11635543,0.00049015,2]
[408359890,1773491467816,-392.37,0.00049015,120]
[408359891,1773491467830,-150.0,0.00049028,30]
[408359892,1773491467839,-1246.0020655,0.00049035,2]
[408359893,1773491467848,-150.0,0.00049041,30]
[408359894,1773491467858,-150.0,0.00049049,30]
[408359895,1773491467867,-322.1011925,0.00049049,30]
[408359896,1773491467876,-169.38985709,0.00049049,30]
[408359897,1773491467885,-150.0,0.00049059,30]
[408359898,1773491467894,-150.0,0.00049069,30]
[408359899,1773491467903,-150.0,0.00049069,30]
[408359900,1773491467912,-150.0,0.00049081,30]
[408359901,1773491467922,-150.0,0.00049087,30]
[408359902,1773491467931,-150.0,0.00049087,30]
[408359903,1773491467940,-322.1011925,0.00049099,30]
[408359904,1773491467949,-169.38985709,0.00049099,30]
[408359905,1773491467958,-150.0,0.00049108,30]
[408359906,1773491467967,-150.0,0.00049114,30]
[408359907,1773491467976,-150.0,0.00049132,30]
[408359908,1773491467985,-5579.55,0.00049144,120]
[408359909,1773491467994,-150.0,0.00049145,30]
[408359910,1773491468003,-322.1011925,0.00049149,30]
[408359911,1773491468012,-169.38985709,0.00049149,30]
[408359912,1773491468021,-150.0,0.0004915,30]
[408359913,1773491468030,-371.18917827,0.00049165,120]
[408359914,1773491468039,-150.0,0.00049169,30]
[408359915,1773491468048,-150.0,0.00049199,30]
[408359916,1773491468057,-322.1011925,0.00049199,30]
[408359917,1773491468067,-169.38985709,0.00049199,30]
[408359918,1773491468076,-4807.3168,0.000492,2]
[408359919,1773491468085,-162.0,0.000492,120]
[408359920,1773491468095,-150.0,0.00049204,30]
[408359921,1773491468103,-150.0,0.0004922,30]
[408359922,1773491468112,-150.0,0.00049224,30]
[408359923,1773491468121,-150.0,0.00049224,30]
[408359924,1773491468130,-150.0,0.00049224,30]
[408359925,1773491468139,-527.61234069,0.00049226,120]
[408359926,1773491468148,-150.0,0.00049238,30]
[408359927,1773491468158,-322.1011925,0.00049249,30]
[408359928,1773491468167,-169.38985709,0.00049249,30]
[408359929,1773491468176,-150.0,0.00049263,30]
[408359930,1773491468185,-400.0,0.0004927,3]
[408359931,1773491468194,-700.0,0.0004927,3]
[408359932,1773491468203,-150.0,0.00049279,30]
[408359933,1773491468212,-150.0,0.00049284,30]
[408359934,1773491468222,-150.0,0.00049284,30]
[408359935,1773491468231,-150.0,0.0004929,30]
[408359936,1773491468240,-322.1011925,0.00049299,30]
[408359937,1773491468250,-169.38985709,0.00049299,30]
[408359938,1773491468259,-350.53,0.000493,2]
[408359939,1773491468269,-150.0,0.000493,120]
[408359940,1773491468278,-200.099999,0.000493,22]
[408359941,1773491468287,-150.0,0.000493,39]
[408359942,1773491468296,-1283.50926654,0.00049314,120]
[408359943,1773491468306,-151.0,0.00049314,120]
[408359944,1773491468315,-250.0,0.00049314,120]
[408359945,1773491468324,-500.0,0.00049314,120]
[408359946,1773491468334,-250.0,0.00049314,120]
[408359947,1773491468344,-500.0,0.00049314,120]
[408359948,1773491468354,-500.0,0.00049314,120]
[408359949,1773491468363,-250.0,0.00049314,120]
[408359950,1773491468372,-500.0,0.00049314,120]
[408359951,1773491468382,-500.0,0.00049314,120]
[408359952,1773491468391,-250.0,0.00049314,120]
[408359953,1773491468400,-500.0,0.00049314,120]
[408359954,1773491468408,-500.0,0.00049314,120]
[408359955,1773491468420,-500.0,0.00049314,120]
[408359956,1773491468428,-250.0,0.00049314,120]
[408359957,1773491468438,-500.0,0.00049314,120]
[408359958,1773491468447,-500.0,0.00049314,120]
[408359959,1773491468456,-500.0,0.00049314,120]
[408359960,1773491468465,-500.0,0.00049314,120]
[408359961,1773491468474,-264.26630835,0.00049314,120]
[408359962,1773491468483,-500.0,0.00049314,120]
[408359963,1773491468492,-250.0,0.00049314,120]
[408359964,1773491468502,-1500.0,0.00049314,120]
[408359965,1773491468510,-500.0,0.00049314,120]
[408359966,1773491468519,-500.0,0.00049314,120]
[408359967,1773491468529,-500.0,0.00049314,120]
[408359968,1773491468538,-500.0,0.00049314,120]
[408359969,1773491468548,-500.0,0.00049314,120]
[408359970,1773491468557,-250.0,0.00049314,120]
[408359971,1773491468567,-500.0,0.00049314,120]
[408359972,1773491468576,-1500.0,0.00049314,120]
[408359973,1773491468585,-500.0,0.00049314,120]
[408359974,1773491468594,-500.0,0.00049314,120]
[408359975,1773491468603,-500.0,0.00049314,120]
[408359976,1773491468612,-250.0,0.00049314,120]
[408359977,1773491468622,-500.0,0.00049314,120]
[408359978,1773491468631,-250.0,0.00049314,120]
[408359979,1773491468640,-500.0,0.00049314,120]
[408359980,1773491468649,-1500.0,0.00049314,120]
[408359981,1773491468658,-500.0,0.00049314,120]
[408359982,1773491468667,-500.0,0.00049314,120]
[408359983,1773491468676,-258.34483912,0.00049314,120]
[408359984,1773491468686,-500.0,0.00049314,120]
[408359985,1773491468695,-500.0,0.00049314,120]
[408359986,1773491468705,-250.0,0.00049314,120]
[408359987,1773491468714,-500.0,0.00049314,120]
[408359988,1773491468724,-500.0,0.00049314,120]
[408359989,1773491468733,-1500.0,0.00049314,120]
[408359990,1773491468742,-500.0,0.00049314,120]
[408359991,1773491468752,-500.0,0.00049314,120]
[408359992,1773491468762,-500.0,0.00049314,120]
[408359993,1773491468771,-248.90587736,0.00049314,120]
[408359994,1773491468780,-500.0,0.00049314,120]
[408359995,1773491468790,-1500.0,0.00049314,120]
[408359996,1773491468800,-500.0,0.00049314,120]
[408359997,1773491468808,-500.0,0.00049314,120]
[408359998,1773491468818,-500.0,0.00049314,120]
[408359999,1773491468826,-500.0,0.00049314,120]
[408360000,1773491468835,-1500.0,0.00049314,120]
[408360001,1773491468844,-500.0,0.00049314,120]
[408360002,1773491468853,-500.0,0.00049314,120]
[408360003,1773491468863,-500.0,0.00049314,120]
[408360004,1773491468872,-500.0,0.00049314,120]
[408360005,1773491468880,-1500.0,0.00049314,120]
[408360006,1773491468889,-151.0,0.00049314,120]
[408360007,1773491468899,-500.0,0.00049314,120]
[408360008,1773491468908,-500.0,0.00049314,120]
[408360009,1773491468917,-500.0,0.00049314,120]
[408360010,1773491468927,-500.0,0.00049314,120]
[408360011,1773491468936,-1500.0,0.00049314,120]
[408360012,1773491468945,-151.0,0.00049314,120]
[408360013,1773491468955,-500.0,0.00049314,120]
[408360014,1773491468964,-500.0,0.00049314,120]
[408360015,1773491468973,-500.0,0.00049314,120]
[408360016,1773491468983,-500.0,0.00049314,120]
[408360017,1773491468992,-1500.0,0.00049314,120]
[408360018,1773491469001,-502.96470696,0.00049314,120]
[408360019,1773491469012,-151.0,0.00049314,120]
[408360020,1773491469021,-500.0,0.00049314,120]
[408360021,1773491469031,-500.0,0.00049314,120]
[408360022,1773491469041,-151.0,0.00049314,120]
[408360023,1773491469050,-518.5,0.00049314,120]
[408360024,1773491469060,-250.0,0.00049314,120]
[408360025,1773491469069,-1500.0,0.00049314,120]
[408360026,1773491469079,-500.0,0.00049314,120]
[408360027,1773491469088,-151.0,0.00049314,120]
[408360028,1773491469097,-500.0,0.00049314,120]
[408360029,1773491469107,-500.0,0.00049314,120]
[408360030,1773491469116,-151.0,0.00049314,120]
[408360031,1773491469125,-537.6845,0.00049314,120]
[408360032,1773491469135,-250.0,0.00049314,120]
[408360033,1773491469144,-562.31740002,0.00049314,120]
[408360034,1773491469153,-500.0,0.00049314,120]
[408360035,1773491469163,-151.0,0.00049314,120]
[408360036,1773491469171,-500.0,0.00049314,120]
[408360037,1773491469180,-500.0,0.00049314,120]
[408360038,1773491469190,-151.0,0.00049314,120]
[408360039,1773491469199,-557.5788265,0.00049314,120]
[408360040,1773491469208,-250.0,0.00049314,120]
[408360041,1773491469217,-500.0,0.00049314,120]
[408360042,1773491469227,-151.0,0.00049314,120]
[408360043,1773491469236,-500.0,0.00049314,120]
[408360044,1773491469246,-500.0,0.00049314,120]
[408360045,1773491469256,-151.0,0.00049314,120]
[408360046,1773491469265,-250.0,0.00049314,120]
[408360047,1773491469275,-500.0,0.00049314,120]
[408360048,1773491469284,-500.0,0.00049314,120]
[408360049,1773491469294,-151.0,0.00049314,120]
[408360050,1773491469303,-250.0,0.00049314,120]
[408360051,1773491469312,-151.0,0.00049314,120]
[408360052,1773491469321,-500.0,0.00049314,120]
[408360053,1773491469335,-500.0,0.00049314,120]
[408360054,1773491469346,-151.0,0.00049314,120]
[408360055,1773491469356,-151.0,0.00049314,120]
[408360056,1773491469366,-250.0,0.00049314,120]
[408360057,1773491469375,-500.0,0.00049314,120]
[408360058,1773491469386,-151.0,0.00049314,120]
[408360059,1773491469395,-151.0,0.00049314,120]
[408360060,1773491469405,-250.0,0.00049314,120]
[408360061,1773491469417,-500.0,0.00049314,120]
[408360062,1773491469432,-151.0,0.00049314,120]
[408360063,1773491469442,-151.0,0.00049314,120]
[408360064,1773491469452,-250.0,0.00049314,120]
[408360065,1773491469462,-160.4954275,0.00049314,120]
[408360066,1773491469472,-500.0,0.00049314,120]
[408360067,1773491469482,-151.97465745,0.00049314,120]
[408360068,1773491469492,-151.0,0.00049314,120]
[408360069,1773491469502,-151.0,0.00049314,120]
[408360070,1773491469512,-250.0,0.00049314,120]
[408360071,1773491469522,-500.0,0.00049314,120]